bitfinex/quotes_SOLUSD_20250210
["timestamp","ask_amount","ask_price","bid_price","bid_amount"]
[1739168248440,0.0001,202.61,202.58,13.19689912]
[1739168250110,0.0001,202.61,202.59,17.14569912]
[1739168250839,0.0001,202.61,202.59,3.9488]
[1739168251033,13.19699912,202.61,202.59,3.9488]
[1739168251204,0.0001,202.61,202.59,3.9488]
[1739168251406,13.19689912,202.6,202.56,3.9494]
[1739168252020,13.19699912,202.61,202.54,3.9498]
[1739168252320,13.19699912,202.61,202.54,27.02119912]
[1739168253126,13.19699912,202.61,202.54,13.8243]
[1739168253338,13.19699912,202.61,202.54,3.9498]
[1739168253505,13.19689912,202.59,202.54,3.9498]
[1739168254209,13.19689912,202.59,202.53,3.95]
[1739168256331,13.19689912,202.59,202.54,0.03]
[1739168256837,13.19689912,202.57,202.54,0.03]
[1739168257520,13.19689912,202.55,202.54,0.03]
[1739168260526,17.14649912,202.55,202.54,0.03]
[1739168264147,13.19689912,202.55,202.54,0.03]
[1739168266543,17.14649912,202.55,202.54,0.03]
[1739168268646,13.19689912,202.55,202.54,0.03]
[1739168270059,17.14649912,202.55,202.54,0.03]
[1739168270750,13.19689912,202.55,202.54,0.03]
[1739168271959,17.14649912,202.55,202.54,0.03]
[1739168273260,30.55834765,202.55,202.54,0.03]
[1739168276664,111.55834765,202.55,202.54,0.03]
[1739168276970,112.55834765,202.55,202.54,0.03]
[1739168278292,111.55834765,202.55,202.54,0.03]
[1739168278567,111.68383765,202.55,202.54,0.03]
[1739168281078,112.68383765,202.55,202.54,0.03]
[1739168281242,20.12549,202.52,202.51,0.03]
[1739168281550,115.24864744,202.52,202.51,0.03]
[1739168281747,114.32238912,202.52,202.51,0.03]
[1739168282141,127.73423765,202.52,202.51,0.03]
[1739168282453,142.55253677,202.52,202.51,0.03]
[1739168282653,129.35563765,202.52,202.51,0.03]
[1739168283369,115.81829912,202.52,202.51,0.03]
[1739168283668,114.19689912,202.52,202.51,0.03]
[1739168284059,131.55894765,202.52,202.51,0.03]
[1739168284951,132.55894765,202.52,202.51,0.03]
[1739168286466,131.55894765,202.52,202.51,0.03]
[1739168286967,133.68443765,202.52,202.51,0.03]
[1739168288949,65.88133677,202.52,202.51,0.03]
[1739168289768,20.0,202.48,202.45,0.03]
[1739168289959,13.19689912,202.46,202.45,0.03]
[1739168294477,91.56004765,202.46,202.45,0.03]
[1739168297777,30.56004765,202.46,202.45,0.03]
[1739168298587,31.68553765,202.46,202.45,0.03]
[1739168298870,32.68553765,202.46,202.45,0.03]
[1739168301686,35.41184853,202.43,202.42,0.03]
[1739168301873,35.41184853,202.43,202.33,0.03]
[1739168301874,20.0,202.37,202.33,0.03]
[1739168302064,13.19689912,202.34,202.33,0.03]
[1739168304664,31.61482543,202.34,202.33,0.03]
[1739168306861,27.53563543,202.34,202.33,0.03]
[1739168307067,13.19689912,202.34,202.33,0.03]
[1739168307291,13.19689912,202.35,202.33,0.03]
[1739168307597,13.19689912,202.34,202.33,0.03]
[1739168307970,13.19689912,202.35,202.33,0.03]
[1739168310498,13.19689912,202.37,202.33,0.03]
[1739168310972,13.19689912,202.36,202.33,0.03]
[1739168311299,0.92670679,202.37,202.33,0.03]
[1739168311300,13.19689912,202.34,202.33,0.03]
[1739168312308,27.53568764,202.34,202.33,0.03]
[1739168312476,26.60874765,202.34,202.33,0.03]
[1739168313497,33.41184853,202.31,202.3,0.03]
[1739168313690,60.73276829,202.31,202.3,0.03]
[1739168314007,47.53586917,202.31,202.3,0.03]
[1739168314512,65.68706829,202.31,202.3,0.03]
[1739168315781,20.0,202.27,202.19,6.2006]
[1739168316092,13.19689912,202.21,202.19,6.2006]
[1739168316296,13.19689912,202.22,202.19,6.2006]
[1739168316604,13.19689912,202.21,202.19,6.2006]
[1739168317170,13.19689912,202.2,202.14,3.9574]
[1739168317417,13.19689912,202.19,202.14,3.9574]
[1739168319379,13.19689912,202.21,202.14,17.15429912]
[1739168320003,13.19689912,202.19,202.14,3.9574]
[1739168320379,13.19689912,202.18,202.14,3.9574]
[1739168321097,13.19689912,202.19,202.14,3.9574]
[1739168322003,13.19689912,202.24,202.17,13.19689912]
[1739168322411,13.19689912,202.22,202.15,13.19689912]
[1739168322581,0.92736512,202.24,202.14,3.9574]
[1739168323081,0.92744021,202.28,202.16,20.0]
[1739168323416,13.19689912,202.27,202.21,13.19689912]
[1739168323728,13.19689912,202.25,202.18,13.19689912]
[1739168324938,13.19689912,202.25,202.19,3.9566]
[1739168325719,13.19689912,202.24,202.19,3.9566]
[1739168325889,13.19689912,202.22,202.15,13.19689912]
[1739168326091,13.53733853,202.29,202.16,13.19689912]
[1739168326092,61.92732231,202.28,202.16,13.19689912]
[1739168326310,13.19689912,202.28,202.21,13.19689912]
[1739168326617,13.19689912,202.27,202.21,13.19689912]
[1739168326817,13.19689912,202.26,202.19,13.22689912]
[1739168327024,13.19689912,202.24,202.2,3.9564]
[1739168327217,13.19689912,202.25,202.2,3.9564]
[1739168327433,20.92724319,202.28,202.2,3.9564]
[1739168327434,13.19689912,202.26,202.2,3.9564]
[1739168327718,13.19689912,202.25,202.2,3.9564]
[1739168328515,247.33446925,202.54,202.24,13.19689912]
[1739168328516,13.19689912,202.32,202.24,13.19689912]
[1739168328700,13.19689912,202.33,202.26,13.19689912]
[1739168328906,13.19689912,202.31,202.26,3.9553]
[1739168330021,13.19689912,202.31,202.24,13.19689912]
[1739168330218,13.19689912,202.3,202.23,13.19689912]
[1739168331213,13.19689912,202.32,202.25,13.19689912]
[1739168331411,13.19689912,202.33,202.26,13.19689912]
[1739168331733,13.19689912,202.33,202.22,13.8462]
[1739168331734,13.19689912,202.31,202.25,13.19689912]
[1739168331921,13.19689912,202.31,202.24,13.19689912]
[1739168332111,13.19689912,202.3,202.23,17.15259912]
[1739168332441,13.19689912,202.31,202.24,13.19689912]
[1739168332809,13.19689912,202.32,202.25,13.19689912]
[1739168333003,13.19689912,202.31,202.24,13.19689912]
[1739168333407,4.88043591,202.36,202.23,3.9557]
[1739168333408,13.19689912,202.29,202.23,3.9557]
[1739168335522,13.19689912,202.29,202.23,17.15259912]
[1739168337518,13.19689912,202.26,202.21,7.9245]
[1739168337738,13.19689912,202.26,202.21,11.8807]
[1739168338445,0.063,202.29,202.21,6.3302]
[1739168338750,0.063,202.29,202.19,3.9864]
[1739168338751,13.19689912,202.23,202.19,0.03]
[1739168340047,13.19689912,202.21,202.19,0.03]
[1739168340349,13.19689912,202.2,202.19,0.03]
[1739168341131,61.92750396,202.25,202.19,0.03]
[1739168341132,13.19689912,202.22,202.19,0.03]
[1739168342349,13.19689912,202.21,202.19,0.03]
[1739168342551,33.19689912,202.22,202.19,0.03]
[1739168342750,13.1052517,202.24,202.19,0.03]
[1739168343528,61.0,202.25,202.19,13.22689912]
[1739168343952,17.13689912,202.26,202.19,13.22689912]
[1739168343953,13.19689912,202.27,202.2,17.15329912]
[1739168344158,13.19689912,202.28,202.21,13.19689912]
[1739168344353,13.25989912,202.29,202.21,13.19689912]
[1739168344856,14.12401669,202.28,202.2,17.15329912]
[1739168345152,13.19689912,202.25,202.19,1.6297]
[1739168345358,13.19689912,202.25,202.19,5.5863]
[1739168346041,13.19689912,202.26,202.19,5.5863]
[1739168347232,13.19689912,202.24,202.19,3.9866]
[1739168347753,13.19689912,202.26,202.19,3.9866]
[1739168348751,13.19689912,202.26,202.19,17.18349912]
[1739168348933,13.19689912,202.26,202.19,3.9866]
[1739168349253,13.19689912,202.25,202.19,3.9866]
[1739168349936,13.19689912,202.24,202.19,0.03]
[1739168350134,0.063,202.24,202.19,0.03]
[1739168350544,0.063,202.24,202.19,13.22689912]
[1739168350953,13.19689912,202.2,202.19,0.03]
[1739168353067,13.19689912,202.21,202.19,0.03]
[1739168354058,13.19689912,202.2,202.19,0.03]
[1739168354733,13.19689912,202.21,202.19,0.03]
[1739168355259,13.19689912,202.2,202.19,0.03]
[1739168356063,4.94609124,202.24,202.19,0.03]
[1739168356064,13.19689912,202.21,202.19,0.03]
[1739168361657,8.46612825,202.21,202.19,0.03]
[1739168365141,8.46612825,202.2,202.19,0.03]
[1739168366332,8.46612825,202.22,202.19,0.03]
[1739168366539,8.46612825,202.23,202.19,0.03]
[1739168366938,8.46612825,202.22,202.19,0.03]
[1739168367850,8.46612825,202.21,202.19,0.03]
[1739168368033,8.46612825,202.2,202.19,0.03]
[1739168368961,8.46612825,202.21,202.19,0.03]
[1739168369342,8.46612825,202.23,202.19,0.03]
[1739168369753,8.46612825,202.22,202.19,0.03]
[1739168370860,8.52912825,202.24,202.19,0.03]
[1739168371056,0.063,202.24,202.2,8.46612825]
[1739168371267,0.063,202.24,202.19,8.49612825]
[1739168371447,0.063,202.24,202.19,0.03]
[1739168372374,0.063,202.24,202.19,3.9866]
[1739168373051,0.063,202.24,202.19,12.45272825]
[1739168373571,0.063,202.24,202.19,3.9866]
[1739168374569,0.063,202.24,202.19,19.08972825]
[1739168376245,0.063,202.24,202.23,8.46612825]
[1739168377681,0.063,202.24,202.23,12.42192825]
[1739168381269,0.063,202.24,202.23,20.30942825]
[1739168382062,0.063,202.24,202.23,11.8433]
[1739168382258,0.063,202.24,202.23,10.1863]
[1739168382482,0.063,202.24,202.21,3.9561]
[1739168383551,0.063,202.24,202.21,12.42222825]
[1739168383876,0.063,202.24,202.21,3.9561]
[1739168384564,0.063,202.24,202.2,3.9564]
[1739168385379,0.063,202.24,202.21,8.46612825]
[1739168385549,0.063,202.24,202.22,3.956]
[1739168387182,0.063,202.24,202.2,3.9564]
[1739168389191,0.063,202.24,202.19,3.9866]
[1739168389689,0.063,202.24,202.19,0.03]
[1739168389690,8.46612825,202.21,202.19,0.03]
[1739168389889,8.52912825,202.24,202.19,0.03]
[1739168390185,0.063,202.24,202.19,0.03]
[1739168390371,8.52912825,202.24,202.19,0.03]
[1739168391982,0.063,202.24,202.23,8.46612825]
[1739168394186,0.063,202.24,202.23,12.42192825]
[1739168396886,0.063,202.24,202.23,25.95926678]
[1739168398980,0.063,202.24,202.23,26.08475678]
[1739168400186,0.063,202.29,202.24,13.66282853]
[1739168400491,0.063,202.29,202.28,8.46612825]
[1739168400990,0.063,202.29,202.24,8.46612825]
[1739168401176,0.063,202.29,202.23,3.9558]
[1739168401177,8.46612825,202.27,202.23,3.9558]
[1739168401488,8.46612825,202.27,202.19,9.9213]
[1739168401694,8.46612825,202.27,202.2,12.42252825]
[1739168402169,8.46612825,202.25,202.19,0.03]
[1739168402374,8.46612825,202.27,202.2,8.46612825]
[1739168402585,0.063,202.29,202.23,8.46612825]
[1739168403184,0.063,202.29,202.24,3.9556]
[1739168403573,0.063,202.29,202.24,12.42172825]
[1739168403874,8.52912825,202.29,202.24,3.9556]
[1739168404287,0.063,202.29,202.24,3.9556]
[1739168405593,0.063,202.29,202.24,12.42172825]
[1739168406591,0.063,202.29,202.26,8.46612825]
[1739168406979,0.063,202.29,202.28,8.46612825]
[1739168407409,0.063,202.29,202.28,22.12895678]
[1739168407708,0.063,202.29,202.28,26.08385678]
[1739168408286,0.063,202.29,202.28,12.42102825]
[1739168408677,0.063,202.29,202.28,3.9549]
[1739168409602,0.063,202.29,202.26,3.9551]
[1739168411008,0.063,202.29,202.26,12.42122825]
[1739168411411,0.063,202.29,202.28,8.46612825]
[1739168411615,0.063,202.29,202.28,17.28748713]
[1739168411794,0.063,202.29,202.28,30.69933566]
[1739168415595,14.80069713,202.4,202.33,13.20709713]
[1739168415897,1.5936,202.4,202.34,13.20709713]
[1739168417013,13.20709713,202.39,202.32,17.16119713]
[1739168417190,13.20709713,202.37,202.32,3.9541]
[1739168417530,13.20709713,202.38,202.32,3.9541]
[1739168417896,13.20709713,202.39,202.32,17.16119713]
[1739168418811,13.20709713,202.39,202.32,27.04649713]
[1739168418997,13.20709713,202.39,202.33,13.20709713]
[1739168419425,13.20709713,202.39,202.32,27.04649713]
[1739168419605,13.20709713,202.37,202.33,20.0]
[1739168420004,13.20709713,202.36,202.32,3.9541]
[1739168421234,13.20709713,202.37,202.3,13.20709713]
[1739168421437,13.20709713,202.38,202.32,13.20709713]
[1739168422127,13.20709713,202.39,202.32,13.20709713]
[1739168422505,13.20709713,202.38,202.31,27.04719713]
[1739168422825,13.20709713,202.37,202.31,27.04719713]
[1739168424037,13.20709713,202.38,202.31,27.04719713]
[1739168424234,13.20709713,202.4,202.34,13.20709713]
[1739168424406,13.27009713,202.42,202.35,13.20709713]
[1739168424736,0.063,202.42,202.38,13.20709713]
[1739168424919,0.063,202.42,202.37,13.20709713]
[1739168425231,0.063,202.42,202.38,13.20709713]
[1739168425432,0.063,202.42,202.39,13.20709713]
[1739168425809,0.063,202.42,202.4,3.9525]
[1739168426117,0.063,202.42,202.41,13.20709713]
[1739168427529,0.063,202.42,202.41,17.28488713]
[1739168427843,0.063,202.42,202.41,30.69673566]
[1739168429523,0.063,202.42,202.41,30.82222566]
[1739168430239,0.063,202.42,202.41,35.76922566]
[1739168430543,0.063,202.42,202.41,30.82222566]
[1739168431158,0.063,202.42,202.41,23.9523]
[1739168432653,0.063,202.42,202.39,3.9526]
[1739168433530,0.063,202.42,202.41,13.20709713]
[1739168433919,0.063,202.42,202.4,33.33258713]
[1739168434112,0.063,202.42,202.4,33.20709713]
[1739168434338,0.063,202.42,202.4,13.20709713]
[1739168434842,0.063,202.42,202.39,13.20709713]
[1739168435212,0.063,202.42,202.41,26.74443566]
[1739168436749,0.063,202.42,202.41,33.20709713]
[1739168437418,0.063,202.42,202.41,37.15939713]
[1739168437614,0.063,202.42,202.41,3.9523]
[1739168437842,0.063,202.42,202.39,3.9525]
[1739168439750,0.063,202.42,202.39,17.15959713]
[1739168439955,0.063,202.42,202.4,33.20709713]
[1739168440248,0.063,202.42,202.41,13.20709713]
[1739168441058,0.063,202.42,202.41,26.86992566]
[1739168441837,0.063,202.42,202.41,30.82222566]
[1739168443458,0.0001,202.42,202.41,61.50222566]
[1739168443665,0.0001,202.42,202.41,62.74499105]
[1739168444431,0.0001,202.42,202.41,30.82222566]
[1739168449460,0.0001,202.42,202.41,60.50222566]
[1739168451664,0.0001,202.45,202.44,0.12549]
[1739168451859,0.0001,202.45,202.44,57.54992566]
[1739168453669,0.0001,202.45,202.44,60.50162566]
[1739168453872,0.0001,202.45,202.44,30.82162566]
[1739168456168,0.0001,202.45,202.44,30.69613566]
[1739168461686,0.0001,202.45,202.44,3.9517]
[1739168462081,0.0001,202.45,202.41,0.03]
[1739168462289,0.0001,202.45,202.41,3.9823]
[1739168462582,0.0001,202.45,202.42,13.20709713]
[1739168463564,0.0001,202.45,202.42,8.44258717]
[1739168463792,0.0001,202.45,202.41,12.42488717]
[1739168464795,0.0001,202.45,202.42,8.44258717]
[1739168464992,0.0001,202.45,202.44,8.44258717]
[1739168465497,0.0001,202.45,202.41,0.03]
[1739168465680,0.0001,202.45,202.41,13.22142202]
[1739168467116,0.0001,202.45,202.42,3.9521]
[1739168467282,0.0001,202.45,202.42,17.14352202]
[1739168468400,0.0001,202.45,202.43,13.19142202]
[1739168468873,0.0001,202.45,202.44,13.19142202]
[1739168469072,0.0001,202.45,202.44,17.14312202]
[1739168469394,0.0001,202.45,202.44,3.9517]
[1739168470808,0.0001,202.45,202.42,0.03]
[1739168471110,13.19152202,202.45,202.42,0.03]
[1739168471475,13.19142202,202.43,202.42,0.03]
[1739168471679,14.71312202,202.43,202.42,0.03]
[1739168477804,18.66502202,202.43,202.42,0.03]
[1739168478514,14.71312202,202.43,202.42,0.03]
[1739168478700,1.5217,202.43,202.42,0.03]
[1739168478998,0.0001,202.45,202.42,0.03]
[1739168479207,0.0001,202.45,202.43,13.19142202]
[1739168479379,0.0001,202.45,202.42,13.22142202]
[1739168479577,0.0001,202.45,202.42,0.03]
[1739168480005,0.0001,202.45,202.42,3.9821]
[1739168480705,0.0001,202.45,202.42,17.17352202]
[1739168481905,13.19152202,202.45,202.42,0.03]
[1739168482278,0.0001,202.45,202.42,0.03]
[1739168483585,0.0001,202.45,202.42,13.22142202]
[1739168484807,0.0001,202.45,202.44,13.19142202]
[1739168486213,0.0001,202.45,202.44,17.14312202]
[1739168487617,0.0001,202.45,202.44,3.9517]
[1739168487791,13.19152202,202.45,202.42,0.03]
[1739168488721,0.0001,202.45,202.42,3.9821]
[1739168489519,0.0001,202.45,202.42,0.03]
[1739168489825,13.19142202,202.43,202.42,0.03]
[1739168491022,17.14332202,202.43,202.42,0.03]
[1739168491216,13.19142202,202.43,202.42,0.03]
[1739168493826,17.14332202,202.43,202.42,0.03]
[1739168495221,13.19142202,202.43,202.42,0.03]
[1739168495403,13.19152202,202.45,202.42,0.03]
[1739168495606,0.0001,202.45,202.42,0.03]
[1739168496923,13.19142202,202.44,202.42,0.03]
[1739168497123,13.19142202,202.43,202.42,0.03]
[1739168499913,13.19142202,202.43,202.37,3.413]
[1739168500116,13.19142202,202.42,202.35,33.19142202]
[1739168500602,13.19142202,202.43,202.36,13.19142202]
[1739168502024,13.19142202,202.43,202.35,33.19142202]
[1739168502229,13.19142202,202.43,202.36,3.9533]
[1739168503831,13.19142202,202.42,202.36,3.9533]
[1739168504129,13.19142202,202.41,202.36,3.9533]
[1739168504322,13.19142202,202.4,202.36,3.9533]
[1739168505231,13.19142202,202.4,202.33,13.19142202]
[1739168505531,13.19142202,202.4,202.34,3.9537]
[1739168506814,13.19142202,202.4,202.36,0.03]
[1739168507812,3.952,202.43,202.36,0.03]
[1739168507813,13.19142202,202.38,202.36,0.03]
[1739168508131,0.9264363,202.43,202.36,0.03]
[1739168508132,13.19142202,202.37,202.36,0.03]
[1739168513144,14.11822478,202.37,202.36,0.03]
[1739168513459,18.07132478,202.37,202.36,0.03]
[1739168514147,14.11822478,202.37,202.36,0.03]
[1739168514340,13.19142202,202.37,202.36,0.03]
[1739168515633,8.45503618,202.37,202.36,0.03]
[1739168517775,8.45503618,202.38,202.36,0.03]
[1739168518063,8.45503618,202.37,202.36,0.03]
[1739168519663,8.45503618,202.38,202.36,0.03]
[1739168520663,8.45503618,202.4,202.36,0.03]
[1739168520846,0.063,202.41,202.36,8.48503618]
[1739168521048,0.063,202.41,202.38,3.9529]
[1739168522036,0.063,202.41,202.38,17.151347]
[1739168522252,0.063,202.41,202.4,13.198447]
[1739168523057,0.063,202.41,202.39,3.9525]
[1739168524360,0.063,202.41,202.39,17.150947]
[1739168524588,0.063,202.41,202.4,13.198447]
[1739168525480,0.063,202.41,202.4,17.150947]
[1739168527262,0.063,202.41,202.4,30.81377553]
[1739168528388,0.063,202.41,202.4,30.68828553]
[1739168528566,0.063,202.41,202.4,30.81377553]
[1739168532495,0.063,202.41,202.4,37.37517553]
[1739168532666,0.0001,202.45,202.44,26.86127553]
[1739168533192,0.0001,202.45,202.44,13.198447]
[1739168533395,0.0001,202.45,202.42,13.198447]
[1739168533863,0.0001,202.45,202.43,13.198447]
[1739168534660,0.0001,202.45,202.44,3.9517]
[1739168537105,0.0001,202.45,202.41,17.150747]
[1739168539202,13.198547,202.45,202.39,13.198447]
[1739168539403,13.198447,202.43,202.38,3.9529]
[1739168539707,0.0001,202.45,202.39,20.0]
[1739168539708,13.198447,202.42,202.39,20.0]
[1739168540204,13.198447,202.42,202.38,3.9529]
[1739168540522,0.0001,202.45,202.41,13.449427]
[1739168540809,0.0001,202.45,202.42,13.198447]
[1739168541308,0.0001,202.45,202.43,3.9519]
[1739168542212,13.198447,202.44,202.41,0.03]
[1739168542512,0.0001,202.45,202.41,0.03]
[1739168542513,13.198447,202.42,202.41,0.03]
[1739168544123,34.248994,202.42,202.41,0.03]
[1739168544428,20.0,202.39,202.36,0.03]
[1739168544617,13.198447,202.37,202.36,0.03]
[1739168546514,14.766547,202.41,202.36,0.03]
[1739168546832,0.0001,202.45,202.36,13.228447]
[1739168546833,13.198447,202.43,202.36,13.228447]
[1739168547035,13.198547,202.45,202.38,13.198447]
[1739168547336,0.0001,202.45,202.39,13.198447]
[1739168547702,13.198547,202.45,202.38,33.198447]
[1739168547899,13.198547,202.45,202.39,3.9527]
[1739168549309,13.198447,202.44,202.39,3.9527]
[1739168551432,13.198447,202.43,202.39,3.9527]
[1739168552841,13.198447,202.44,202.39,3.9527]
[1739168553023,0.0001,202.45,202.39,3.9527]
[1739168553024,13.198547,202.45,202.39,3.9527]
[1739168554208,0.0001,202.45,202.39,17.151147]
[1739168557760,13.198447,202.44,202.39,3.9527]
[1739168557940,13.198447,202.43,202.39,3.9527]
[1739168559121,0.0001,202.45,202.39,17.151147]
[1739168559531,13.198547,202.45,202.39,3.9527]
[1739168560813,13.198447,202.44,202.39,3.9527]
[1739168561135,13.198547,202.45,202.39,3.9527]
[1739168561766,13.198447,202.44,202.39,3.9527]
[1739168562071,13.198447,202.43,202.37,3.9529]
[1739168562362,13.198447,202.43,202.36,13.228447]
[1739168562363,13.198447,202.4,202.36,0.03]
[1739168562657,13.198447,202.39,202.36,0.03]
[1739168564060,13.198447,202.38,202.36,0.03]
[1739168564267,13.198447,202.37,202.36,0.03]
[1739168566263,17.151547,202.37,202.36,0.03]
[1739168566563,30.68888553,202.37,202.36,0.03]
[1739168575269,17.151547,202.37,202.36,0.03]
[1739168575970,18.07833782,202.37,202.36,0.03]
[1739168576555,13.198447,202.37,202.36,0.03]
[1739168578680,13.198447,202.38,202.36,0.03]
[1739168578883,13.198447,202.39,202.36,0.03]
[1739168581184,13.198447,202.38,202.36,0.03]
[1739168582585,13.198447,202.39,202.36,0.03]
[1739168582789,13.198447,202.4,202.36,0.03]
[1739168583155,13.198447,202.39,202.36,0.03]
[1739168583884,13.198447,202.38,202.36,0.03]
[1739168584086,13.198447,202.37,202.36,0.03]
[1739168584492,13.198447,202.38,202.36,0.03]
[1739168585596,4.0154,202.41,202.36,0.03]
[1739168585597,13.198447,202.39,202.36,0.03]
[1739168587404,13.198447,202.4,202.36,0.03]
[1739168587601,8.45012066,202.4,202.36,0.03]
[1739168588013,8.51312066,202.41,202.36,0.03]
[1739168590210,0.063,202.41,202.36,0.03]
[1739168590712,8.45012066,202.4,202.36,0.03]
[1739168590918,8.45012066,202.37,202.36,0.03]
[1739168591684,13.20728123,202.37,202.36,0.03]
[1739168595368,81.063,202.41,202.36,0.03]
[1739168595517,0.063,202.41,202.38,13.20728123]
[1739168595692,0.063,202.41,202.39,13.20728123]
[1739168595887,0.063,202.41,202.37,13.20728123]
[1739168596199,0.063,202.41,202.36,0.03]
[1739168596621,0.063,202.41,202.39,13.20728123]
[1739168598019,0.063,202.41,202.4,3.9525]
[1739168598222,0.063,202.41,202.4,17.15978123]
[1739168598523,0.063,202.41,202.4,23.73448123]
[1739168602521,0.063,202.41,202.4,10.5272]
[1739168603103,0.063,202.41,202.4,3.9525]
[1739168603301,0.063,202.41,202.38,3.9527]
[1739168604926,0.063,202.41,202.36,9.9132]
[1739168604927,0.063,202.41,202.36,17.19058123]
[1739168605121,0.063,202.41,202.36,3.9833]
[1739168609234,0.063,202.41,202.39,0.25098]
[1739168609437,0.063,202.41,202.4,46.87010976]
[1739168610724,0.063,202.41,202.4,50.82260976]
[1739168611714,0.063,202.41,202.4,46.05688167]
[1739168612116,0.0001,202.45,202.44,20.25098]
[1739168612316,0.0001,202.45,202.44,42.10438167]
[1739168613026,0.063,202.5,202.45,13.66282853]
[1739168613333,0.063,202.5,202.49,8.44155314]
[1739168613728,0.063,202.5,202.49,26.84389803]
[1739168614139,0.063,202.5,202.49,30.79469803]
[1739168614640,0.063,202.5,202.49,32.04339755]
[1739168615530,0.063,202.5,202.49,30.79469803]
[1739168616635,0.063,202.5,202.49,17.1318695]
[1739168617116,0.063,202.5,202.49,3.9508]
[1739168618634,0.063,202.5,202.48,13.1810695]
[1739168618939,0.063,202.5,202.47,3.951]
[1739168619138,0.063,202.5,202.47,17.1320695]
[1739168619451,0.063,202.5,202.48,13.1810695]
[1739168619735,0.063,202.5,202.49,30.79469803]
[1739168621535,0.063,202.5,202.49,3.9508]
[1739168621742,0.063,202.5,202.46,17.1323695]
[1739168622242,0.063,202.5,202.49,13.1810695]
[1739168622751,0.063,202.5,202.49,26.84389803]
[1739168623819,0.063,202.5,202.49,3.9508]
[1739168624338,0.063,202.5,202.49,23.9508]
[1739168624844,0.063,202.5,202.49,3.9508]
[1739168625731,0.063,202.5,202.47,17.1320695]
[1739168626132,0.063,202.5,202.48,13.1810695]
[1739168627331,0.063,202.5,202.47,3.951]
[1739168628448,13.2440695,202.5,202.47,3.951]
[1739168628629,0.063,202.5,202.47,3.951]
[1739168629134,13.1810695,202.49,202.42,13.1810695]
[1739168629451,13.2440695,202.5,202.43,13.1810695]
[1739168630240,13.1810695,202.49,202.42,13.1810695]
[1739168630842,13.1810695,202.48,202.41,33.1810695]
[1739168631046,13.1810695,202.49,202.42,13.1810695]
[1739168632152,13.2440695,202.5,202.43,13.1810695]
[1739168632348,13.2440695,202.5,202.44,3.9517]
[1739168632724,13.1810695,202.49,202.44,3.9517]
[1739168634753,13.1810695,202.49,202.42,33.1810695]
[1739168634936,13.1810695,202.49,202.43,3.9519]
[1739168635127,13.1810695,202.48,202.43,3.9519]
[1739168635432,13.1810695,202.49,202.43,3.9519]
[1739168636553,13.1810695,202.48,202.43,3.9519]
[1739168638255,13.1810695,202.48,202.4,13.1810695]
[1739168638432,13.1810695,202.46,202.4,3.9525]
[1739168638632,13.1810695,202.45,202.38,13.1810695]
[1739168638838,13.1810695,202.44,202.39,3.9527]
[1739168641255,13.1810695,202.44,202.37,13.1810695]
[1739168641434,13.1810695,202.43,202.38,3.9529]
[1739168642043,13.1810695,202.42,202.38,3.9529]
[1739168642256,13.1810695,202.42,202.36,3.9831]
[1739168642436,13.1810695,202.38,202.36,0.03]
[1739168642756,13.1810695,202.37,202.36,0.03]
[1739168643358,3.9,202.4,202.36,0.03]
[1739168643532,13.1810695,202.39,202.36,0.03]
[1739168644457,17.0810695,202.4,202.36,0.03]
[1739168644758,14.6906695,202.43,202.36,13.2110695]
[1739168644932,13.1810695,202.42,202.36,0.03]
[1739168645654,14.6906695,202.43,202.36,17.1643695]
[1739168645856,13.1810695,202.42,202.36,3.9833]